Cogmind - Beta 11.1 @@@ ROGUE MODE // 2022.10.20 @ 15:25:05 Player: Benkyo Result: Escaped! Performance ------------- Evolutions (9) 4500 Regions Visited (16) 3200 Robots Destroyed (108) 540 Value Destroyed (2425) 2425 Prototype IDs (38) 760 Alien Tech Used (0) 0 Bonus (19410) 19410 TOTAL SCORE: 30835 Bonus ------- Devolution 7500 High Alert Combat Kills 60 Follower Combat Kills 321 Entered Garrisons 200 Used RIF Installer 500 Entered DSFs 1000 Win 3000 Challenge Win 7000 Friendly Fire -171 Cogmind --------- Core Integrity 465/800 Matter 226/300 Energy 98/100 System Corruption 1% Temperature Cool (4) Movement Flying (32) Location To Epsilon Eridani Parts ------- > --- POWER (1) -------- (None) > --- PROPULSION (4) --- Improved VTOL Module Improved VTOL Module > --- UTILITY (3) ------ (None) > --- WEAPON (3) ------- (None) > --- INVENTORY (5) ---- Latent Energy Streamer Fusion Bomb Launcher Peak State ------------ > --- POWER ------------ Improved Ion Engine Heavy Ion Engine Light Nuclear Core > --- PROPULSION ------- Improved VTOL Module Improved VTOL Module Improved VTOL Module Improved VTOL Module Improved VTOL Module Improved VTOL Module Improved VTOL Module Improved VTOL Module > --- UTILITY ---------- High-capacity Storage Unit Structural Scanner Improved Sensor Array Improved Signal Interpreter > --- WEAPON ----------- Improved Assault Rifle Enhanced Autogun Enhanced Autogun > --- INVENTORY -------- Light Treads Armored Treads Wheel Wheel Improved Heat Sink Improved Cooling System Improved Terrain Scanner Hardened Light Armor Plating Improved Light Armor Plating Improved Light Armor Plating System Restoration Module Latent Energy Streamer Ion Cannon Assault Cannon Assault Cannon Assault Cannon Rocket Launcher Mini Grenade Launcher Remote Datajack Heavy Flail [Rating: 65] Favorites ----------- Power Ion Engine Engine Ion Engine Power Core Nuclear Core Reactor Light Quantum Reactor Propulsion Armored Wheel Treads Improved Treads Leg Aluminum Leg Wheel Armored Wheel Hover Unit Aerolev Unit Flight Unit Improved VTOL Module Utility Improved Heat Sink Device Improved Heat Sink Storage High-capacity Storage Unit Processor Advanced Signal Interpreter Protection Medium Armor Plating Weapon Autogun Energy Gun Makeshift Laser Ballistic Gun Autogun Ballistic Cannon Assault Cannon Launcher Fusion Bomb Launcher Special Weapon Remote Datajack Impact Weapon Heavy Flail Build | -11 -10 -10 -10 -9 -8 -8 -7 -7 -6 -5 -4 -3 -3 -3 -2 -1 ------- Run | Scr Mat Min Exi Min Mat Sto Fac DSF Fac Fac Fac Res DSF Gar Res Acc Slots Evolved -9 | . . . . . -2 . -1 . -1 -1 -1 -1 . . -1 -1 Power -2 | . . . . . . . . . . -1 -1 . . . . . Propulsion -4 | . . . . . . . -1 . -1 . . -1 . . -1 . Utility -2 | . . . . . -1 . . . . . . . . . . -1 Weapon -1 | . . . . . -1 . . . . . . . . . . . Parts Attached 174 | 20 21 . . 24 32 42 3 . 1 7 . 1 . . . 23 Power 24 | 3 1 . . 3 6 7 . . . 2 . . . . . 2 Engine 16 | 3 . . . 3 5 4 . . . 1 . . . . . . Core 6 | . 1 . . . 1 3 . . . 1 . . . . . . Reactor 2 | . . . . . . . . . . . . . . . . 2 Propulsion 55 | 8 8 . . 6 10 16 1 . . . . 1 . . . 5 Treads 19 | 2 4 . . . 8 5 . . . . . . . . . . Leg 2 | 2 . . . . . . . . . . . . . . . . Wheel 17 | 4 4 . . 6 1 2 . . . . . . . . . . Hover 1 | . . . . . 1 . . . . . . . . . . . Flight 16 | . . . . . . 9 1 . . . . 1 . . . 5 Utility 53 | 5 8 . . 10 9 12 . . 1 4 . . . . . 4 Device 34 | 4 3 . . 6 4 9 . . 1 3 . . . . . 4 Storage 6 | 1 1 . . . 3 1 . . . . . . . . . . Processor 3 | . 1 . . . . 1 . . . 1 . . . . . . Hackware . | . . . . . . . . . . . . . . . . . Protection 10 | . 3 . . 4 2 1 . . . . . . . . . . Artifact . | . . . . . . . . . . . . . . . . . Weapon 42 | 4 4 . . 5 7 7 2 . . 1 . . . . . 12 Energy Gun 3 | . . . . 1 . . . . . . . . . . . 2 Energy Cannon . | . . . . . . . . . . . . . . . . . Ballistic Gun 20 | 3 4 . . 4 4 5 . . . . . . . . . . Ballistic Cannon 4 | . . . . . 3 1 . . . . . . . . . . Launcher 2 | . . . . . . . . . . . . . . . . 2 Special Weapon 3 | 1 . . . . . . 1 . . 1 . . . . . . Impact Weapon 10 | . . . . . . 1 1 . . . . . . . . 8 Slashing Weapon . | . . . . . . . . . . . . . . . . . Piercing Weapon . | . . . . . . . . . . . . . . . . . Special Melee Weapon . | . . . . . . . . . . . . . . . . . Unidentified Prototypes 7 | . . . . . 1 3 2 . . . . . . . . 1 Corrupted Parts 2 | . . . . 2 . . . . . . . . . . . . System Corruption 9 | . . . . 9 . . . . . . . . . . . . Parts Lost 42 | . . . . 17 2 10 . 1 . . . . 2 3 . 7 Power 9 | . . . . 3 1 3 . . . . . . 1 . . 1 Propulsion 14 | . . . . 4 1 6 . . . . . . . 1 . 2 Utility 13 | . . . . 6 . 1 . 1 . . . . . 2 . 3 Weapon 6 | . . . . 4 . . . . . . . . 1 . . 1 Highest Loss Streak 17 | . . . . 17 1 5 . 1 . . . . 2 3 . 6 To Critical Strikes 1 | . . . . 1 . . . . . . . . . . . . Average Slot Usage (%) 91 | . 100 100 100 88 96 87 94 94 87 90 92 92 78 69 58 53 Engine 8 | . 14 10 10 12 8 4 5 5 6 6 . . . . . . Core 3 | . . 5 5 . 4 4 11 11 12 6 7 7 . . . . Treads 14 | . 17 20 20 . 20 18 . . . . . . . . . . Wheel 18 | . 20 20 20 31 23 10 . . . . . . . . . . Flight 6 | . . . . . . 10 41 41 37 40 42 38 38 35 33 25 Device 13 | . 14 15 15 18 11 13 17 17 12 16 21 23 23 18 8 12 Storage 4 | . 5 5 5 5 5 3 . . . . . . . . . . Protection 3 | . 5 5 5 . 4 2 . . . . . . . . . . Ballistic Gun 9 | . 19 20 20 15 6 5 . . . . . . . . . . Ballistic Cannon 4 | . . . . . 9 8 . . . . . . . . . . Impact Weapon 1 | . . . . . . 1 5 5 6 6 7 7 7 7 8 7 Naked Turns . | . . . . . . . . . . . . . . . . . Heaviest Build 84 | 28 57 57 57 57 83 84 28 28 27 25 15 15 15 7 4 29 Greatest Support 102 | 52 54 48 48 98 86 102 30 37 30 25 30 15 25 25 10 31 Greatest Overweight (x) 6 | . 1 1 1 1 3 6 . . . . . . 2 . . 3 Average Overweight (x) . | . . 1 1 . . . . . . . . . . . . . Largest Inventory Capacity 20 | 8 15 15 15 15 20 20 5 5 5 5 5 5 5 5 5 5 Average Capacity 14 | 7 12 15 15 15 19 16 5 5 5 5 5 5 5 5 5 5 Most Carried 20 | 4 10 10 15 15 20 20 5 5 5 5 5 5 5 5 5 5 Average Carried 12 | . 7 9 12 10 19 16 4 5 5 5 5 4 5 5 5 4 Final Capacity 20 | 8 15 15 15 15 20 5 5 5 5 5 5 5 5 5 5 5 Final Carried 20 | 1 9 10 15 13 20 5 5 5 5 5 5 5 5 5 5 2 Class Distribution -------------------- 60% | Scavenger-Tank 14% | Scavenger-Skirmisher 8% | Scout 5% | Mutant 3% | Sprinter 3% | Tank Dominant Class ---------------- Scavenger-Tank | -10/Materials Scavenger-Tank | -10/Mines Scavenger-Tank | -10/Exiles Scavenger-Skirmisher | -9/Mines Scavenger-Tank | -8/Materials Scavenger-Tank | -8/Storage Scavenger-Tank | -7/Factory Scavenger-Tank | -7/DSF Sprinter | -6/Factory Scout | -5/Factory Scout | -4/Factory Scout | -3/Research Scout | -3/DSF Scout | -3/Garrison Sprinter | -2/Research Mutant | -1/Access Resources | -11 -10 -10 -10 -9 -8 -8 -7 -7 -6 -5 -4 -3 -3 -3 -2 -1 ----------- Run | Scr Mat Min Exi Min Mat Sto Fac DSF Fac Fac Fac Res DSF Gar Res Acc Matter Collected 4058 | 492 643 31 . 622 867 1109 . . . 73 43 . . . . 178 Remotely 162 | . . . . 162 . . . . . . . . . . . . Salvage Created 3835 | 245 645 . . 556 1064 821 . . . 73 43 . . . . 388 Parts 201 | 14 54 . . 20 66 41 . . . 4 . . . . . 2 Haulers Intercepted 9 | . 2 . . . 3 3 . . . . . . . . . 1 Recyclers Shooed 1 | . . . . 1 . . . . . . . . . . . . Parts Field Recycled . | . . . . . . . . . . . . . . . . . Retrieved Matter . | . . . . . . . . . . . . . . . . . Parts Self-Destructed . | . . . . . . . . . . . . . . . . . Prevented . | . . . . . . . . . . . . . . . . . Kills | -11 -10 -10 -10 -9 -8 -8 -7 -7 -6 -5 -4 -3 -3 -3 -2 -1 ------- Run | Scr Mat Min Exi Min Mat Sto Fac DSF Fac Fac Fac Res DSF Gar Res Acc Combat Hostiles Destroyed 72 | . 14 . . 20 18 20 . . . . . . . . . . Guns 55 | . 14 . . 20 13 8 . . . . . . . . . . Cannons 17 | . . . . . 5 12 . . . . . . . . . . Classes Destroyed 16 | 3 5 . . 2 4 2 . . . . . . . . . . Worker 3 | 2 . . . . . 1 . . . . . . . . . . Builder 13 | . 2 . . 2 1 4 . . . 3 . . . . . 1 Tunneler 7 | 5 . . . 1 . . . . . . . . . . . 1 Hauler 9 | . 2 . . . 3 3 . . . . . . . . . 1 Recycler 6 | 1 . . . 3 1 . . . . . . . . . . 1 Mechanic 1 | . . . . . 1 . . . . . . . . . . . Operator 1 | . . . . . 1 . . . . . . . . . . . Watcher 11 | . 3 . . . 3 . . . . . 1 . . . . 4 Swarmer 21 | . 6 . . 3 8 4 . . . . . . . . . . Grunt 23 | . 8 . . . 3 12 . . . . . . . . . . Brawler 1 | . . . . . . 1 . . . . . . . . . . Protector 1 | . . . . . . 1 . . . . . . . . . . Sentry 8 | . . . . . 6 2 . . . . . . . . . . Demolisher 1 | . . . . 1 . . . . . . . . . . . . Hunter 1 | . . . . . 1 . . . . . . . . . . . Assembled 16 | . . . . 16 . . . . . . . . . . . . Thug 1 | . . . . . 1 . . . . . . . . . . . Best Kill Streak 19 | 4 5 . . 19 8 8 . . . 2 1 . . . . 3 Combat Bots Only 19 | . 3 . . 19 5 7 . . . . . . . . . . Max Kills in Single Turn 2 | 1 2 . . 2 2 2 . . . 1 1 . . . . 1 Gunslinging 1 | . . . . 1 1 . . . . . . . . . . . Exploded . | . . . . . . . . . . . . . . . . . Melee . | . . . . . . . . . . . . . . . . . Uniques/NPCs Destroyed . | . . . . . . . . . . . . . . . . . Combat | -11 -10 -10 -10 -9 -8 -8 -7 -7 -6 -5 -4 -3 -3 -3 -2 -1 -------- Run | Scr Mat Min Exi Min Mat Sto Fac DSF Fac Fac Fac Res DSF Gar Res Acc Damage Taken 7377 | . 222 . . 2243 410 2315 . 43 28 20 27 . 245 437 23 1364 Core 1429 | . . . . 169 40 520 . . 11 20 27 . 80 227 . 335 Absorbed by Shields . | . . . . . . . . . . . . . . . . . Regen/Repaired (Parts) 107 | . . . . . 62 . . . . 45 . . . . . . Core Remaining (%) 81 | 100 . . . 78 . 30 . 100 98 97 96 . . 61 100 58 Volleys Fired 196 | 14 32 . . 33 50 63 . . 1 . . . . . . 3 Largest 4 | 3 4 . . 4 3 3 . . 1 . . . . . . 1 Hottest 132 | 60 92 . . 113 132 132 . . 5 . . . . . . 52 Shots Fired 605 | 42 125 . . 120 150 164 . . 1 . . . . . . 3 Gun 473 | 42 125 . . 120 117 69 . . . . . . . . . . Cannon 128 | . . . . . 33 95 . . . . . . . . . . Launcher 3 | . . . . . . . . . . . . . . . . 3 Special 1 | . . . . . . . . . 1 . . . . . . . Kinetic 591 | 42 125 . . 110 150 164 . . . . . . . . . . Thermal 10 | . . . . 10 . . . . . . . . . . . . Explosive 3 | . . . . . . . . . . . . . . . . 3 Electromagnetic . | . . . . . . . . . . . . . . . . . Robot Hit Streak 14 | 9 9 . . 8 10 14 . . 9 . . . . . . . Robot Miss Streak 9 | 3 9 . . 6 7 4 . . . . . . . . . . Penetration Max . | . . . . . . . . . . . . . . . . . Secondary Targets 22 | . 3 . . 13 1 5 . . . . . . . . . . Max Gunslinging Chain 2 | . 1 . . 2 1 1 . . . . . . . . . . Shots Hit Robots 364 | 22 65 . . 69 84 105 . . 1 3 2 . . . . 13 Core Hits 173 | 11 27 . . 44 46 38 . . . 1 . . . . . 6 Critical Kills 2 | . . . . 1 . 1 . . . . . . . . . . Critical Parts Destroyed 5 | . . . . 1 1 . . . . 1 1 . . . . 1 Critical Strikes 10 | . . . . 3 1 3 . . . 1 1 . . . . 1 Burn 1 | . . . . 1 . . . . . . . . . . . . Destroy 4 | . . . . 2 1 1 . . . . . . . . . . Blast 2 | . . . . . . 2 . . . . . . . . . . Smash 3 | . . . . . . . . . . 1 1 . . . . 1 Melee Attacks 59 | . . . . . . 10 . . 1 13 10 1 . . 2 22 Impact 59 | . . . . . . 10 . . 1 13 10 1 . . 2 22 Slashing . | . . . . . . . . . . . . . . . . . Piercing . | . . . . . . . . . . . . . . . . . Sneak Attacks 10 | . . . . . . 1 . . . 3 . . . . . 6 Combat Hostiles . | . . . . . . . . . . . . . . . . . Follow-up Attacks . | . . . . . . . . . . . . . . . . . Damage Inflicted 8128 | 261 1003 . . 1218 1452 2506 . . . 260 125 . . . . 1303 Guns 4473 | 261 1003 . . 1218 1079 912 . . . . . . . . . . Cannons 1752 | . . . . . 373 1379 . . . . . . . . . . Explosions 157 | . . . . . . . . . . . . . . . . 157 Melee 1746 | . . . . . . 215 . . . 260 125 . . . . 1146 Ramming . | . . . . . . . . . . . . . . . . . Kinetic 6063 | 261 1003 . . 1056 1452 2291 . . . . . . . . . . Thermal 255 | . . . . 162 . . . . . . . . . . . 93 Explosive 64 | . . . . . . . . . . . . . . . . 64 Electromagnetic . | . . . . . . . . . . . . . . . . . Impact 1746 | . . . . . . 215 . . . 260 125 . . . . 1146 Slashing . | . . . . . . . . . . . . . . . . . Piercing . | . . . . . . . . . . . . . . . . . Highest Corruption 15 | . . . . 15 . . . . . . . . . . . 1 Average Corruption 5 | . . . . 6 . . . . . . . . . . . 1 Corruption Purged . | . . . . . . . . . . . . . . . . . Corruption Blocked . | . . . . . . . . . . . . . . . . . Effects 21 | . . . . 21 . . . . . . . . . . . . Message Errors 3 | . . . . 3 . . . . . . . . . . . . Matter Fused 4 | . . . . 4 . . . . . . . . . . . . Heat Flow Errors 5 | . . . . 5 . . . . . . . . . . . . Energy Discharges 2 | . . . . 2 . . . . . . . . . . . . Data Loss (minor) 3 | . . . . 3 . . . . . . . . . . . . Alerts 3 | . . . . 3 . . . . . . . . . . . . Weapon Failures 1 | . . . . 1 . . . . . . . . . . . . Overload Shots . | . . . . . . . . . . . . . . . . . Overflow Damage 871 | . . . . . 3 160 . . . 100 94 . . . . 514 Projectiles 30 | . . . . . 3 27 . . . . . . . . . . Explosions . | . . . . . . . . . . . . . . . . . Melee 841 | . . . . . . 133 . . . 100 94 . . . . 514 Knockbacks 13 | . . . . . 2 6 . . . . . . . . . 5 Impact 5 | . . . . . . . . . . . . . . . . 5 Kinetic 8 | . . . . . 2 6 . . . . . . . . . . Secondary . | . . . . . . . . . . . . . . . . . Self-Inflicted Damage . | . . . . . . . . . . . . . . . . . Shots . | . . . . . . . . . . . . . . . . . Rammed . | . . . . . . . . . . . . . . . . . Targets Rammed . | . . . . . . . . . . . . . . . . . Kicked . | . . . . . . . . . . . . . . . . . Crushed . | . . . . . . . . . . . . . . . . . Highest Temperature 591 | 240 334 . . 199 317 591 24 . 44 4 . . . 57 . 94 Average Temperature 93 | 83 125 . . 65 63 185 12 . 19 4 . . . 33 . 20 Received Heat Transfer 1555 | . 75 . . 260 153 993 . . . . . . 20 36 . 18 Effects 29 | . 3 . . . 1 25 . . . . . . . . . . Shutdowns 6 | . . . . . . 6 . . . . . . . . . . Energy Bleed 1 | . . . . . 1 . . . . . . . . . . . Interference 6 | . 3 . . . . 3 . . . . . . . . . . Matter Decay 3 | . . . . . . 3 . . . . . . . . . . Short Circuit 1 | . . . . . . 1 . . . . . . . . . . Damage (minor) 2 | . . . . . . 2 . . . . . . . . . . Damage (major) 6 | . . . . . . 6 . . . . . . . . . . Damage (core) 4 | . . . . . . 4 . . . . . . . . . . Siege Activations . | . . . . . . . . . . . . . . . . . Robots Corrupted . | . . . . . . . . . . . . . . . . . Combat Hostiles . | . . . . . . . . . . . . . . . . . Parts Fried 22 | . . . . . . 1 . . . 3 . . . . . 18 Impact Corruptions 28 | . . . . . . 5 . . . 5 3 . . . . 15 Robots Melted . | . . . . . . . . . . . . . . . . . Combat Hostiles . | . . . . . . . . . . . . . . . . . Parts Melted 1 | . . . . . 1 . . . . . . . . . . . Heat Transferred 507 | . . . . 407 . . . . . . . . . . . 100 Parts Sabotaged . | . . . . . . . . . . . . . . . . . Parts Stolen . | . . . . . . . . . . . . . . . . . Parts Stripped . | . . . . . . . . . . . . . . . . . Power Chain Reactions . | . . . . . . . . . . . . . . . . . Missiles Intercepted . | . . . . . . . . . . . . . . . . . Alert | -11 -10 -10 -10 -9 -8 -8 -7 -7 -6 -5 -4 -3 -3 -3 -2 -1 ------- Run | Scr Mat Min Exi Min Mat Sto Fac DSF Fac Fac Fac Res DSF Gar Res Acc Peak Influence 683 | 40 434 169 . 81 606 585 271 189 109 176 180 96 72 95 74 683 Initial 266 | . 26 169 . . 31 146 266 189 93 53 86 94 72 50 53 44 Average 230 | 22 245 129 . 47 339 280 266 182 100 83 130 94 58 49 61 263 Maximum Alert Level 2 | . 2 . . . 2 2 1 . . . . . . . . 2 Low Security (%) 51 | 100 34 100 . 100 22 28 . 100 100 100 100 100 100 100 100 45 Level 1 27 | . 45 . . . 34 57 100 . . . . . . . . 38 Level 2 21 | . 20 . . . 43 13 . . . . . . . . . 15 Level 3 . | . . . . . . . . . . . . . . . . . Level 4 . | . . . . . . . . . . . . . . . . . Level 5 . | . . . . . . . . . . . . . . . . . High Security . | . . . . . . . . . . . . . . . . . Max Security . | . . . . . . . . . . . . . . . . . Squads Dispatched 13 | . 4 . . . 3 3 . . . . . . . . . 3 Investigation 6 | . 3 . . . 2 . . . . . . . . . . 1 Extermination . | . . . . . . . . . . . . . . . . . Reinforcement 5 | . 1 . . . 1 1 . . . . . . . . . 2 Assault 2 | . . . . . . 2 . . . . . . . . . . Garrison . | . . . . . . . . . . . . . . . . . Intercept . | . . . . . . . . . . . . . . . . . Searches Triggered . | . . . . . . . . . . . . . . . . . Construction Impeded 1 | . . . . . 1 . . . . . . . . . . . Haulers Reinforced . | . . . . . . . . . . . . . . . . . Active Scanning Responses . | . . . . . . . . . . . . . . . . . Cargo Convoy Interrupts . | . . . . . . . . . . . . . . . . . Stealth | -11 -10 -10 -10 -9 -8 -8 -7 -7 -6 -5 -4 -3 -3 -3 -2 -1 --------- Run | Scr Mat Min Exi Min Mat Sto Fac DSF Fac Fac Fac Res DSF Gar Res Acc Distress Signals 8 | . . . . . 2 2 . . . . 1 . . . . 3 Communications Jammed . | . . . . . . . . . . . . . . . . . Distress Signals . | . . . . . . . . . . . . . . . . . Times Spotted 198 | . 17 . . 25 36 34 . 1 1 1 5 . 13 11 1 53 Peak Tracking Total 20 | . 3 . . 20 5 9 . 1 1 1 3 . 11 15 1 19 Tactical Retreats 16 | . . . . 1 1 3 . . . . 2 . . 1 . 8 Traps | -11 -10 -10 -10 -9 -8 -8 -7 -7 -6 -5 -4 -3 -3 -3 -2 -1 ------- Run | Scr Mat Min Exi Min Mat Sto Fac DSF Fac Fac Fac Res DSF Gar Res Acc Traps Triggered 6 | . . . . . 2 . . . . . . . 1 2 . 1 Indirectly . | . . . . . . . . . . . . . . . . . Trap Hack Attempts . | . . . . . . . . . . . . . . . . . Triggered . | . . . . . . . . . . . . . . . . . Disarmed . | . . . . . . . . . . . . . . . . . Reprogrammed . | . . . . . . . . . . . . . . . . . Reused . | . . . . . . . . . . . . . . . . . Traps Extracted . | . . . . . . . . . . . . . . . . . Installed . | . . . . . . . . . . . . . . . . . Triggered . | . . . . . . . . . . . . . . . . . Machines | -11 -10 -10 -10 -9 -8 -8 -7 -7 -6 -5 -4 -3 -3 -3 -2 -1 ---------- Run | Scr Mat Min Exi Min Mat Sto Fac DSF Fac Fac Fac Res DSF Gar Res Acc Machines Disabled 13 | . 5 . . . 2 4 . . . . . . . . . 2 Max in Single Turn 2 | . 2 . . . 1 1 . . . . . . . . . 1 Garrison Access 2 | . . . . . 1 1 . . . . . . . . . . Energy Cycler 1 | . . . . . . . . . . . . . . . . 1 Machines Sabotaged . | . . . . . . . . . . . . . . . . . Garrisons Compromised . | . . . . . . . . . . . . . . . . . Overloaded Fab Kills . | . . . . . . . . . . . . . . . . . Hacking | -11 -10 -10 -10 -9 -8 -8 -7 -7 -6 -5 -4 -3 -3 -3 -2 -1 --------- Run | Scr Mat Min Exi Min Mat Sto Fac DSF Fac Fac Fac Res DSF Gar Res Acc Machines Accessed 39 | . 9 . 2 1 14 4 1 . . 2 3 1 . . 1 1 Terminals 25 | . 7 . . . 9 3 1 . . 1 3 1 . . . . Fabricators 2 | . . . . . . . . . . . . . . . 1 1 Repair Stations 2 | . . . . . 1 . . . . 1 . . . . . . Recycling Units 4 | . 2 . . . 2 . . . . . . . . . . . Scanalyzers 1 | . . . . . 1 . . . . . . . . . . . Garrison Access 2 | . . . . . 1 1 . . . . . . . . . . Total Hacks 95 | . 32 . 2 1 37 4 2 . . 8 4 1 . . 2 2 Successful 51 | . 15 . 2 1 23 3 1 . . 4 . 1 . . . 1 Failed 44 | . 17 . . . 14 1 1 . . 4 4 . . . 2 1 Catastrophic 7 | . 1 . . . 2 1 . . . 1 2 . . . . . Database Lockouts . | . . . . . . . . . . . . . . . . . Manual 45 | . 24 . 1 . 12 1 . . . 5 2 . . . . . Terminals 63 | . 28 . . . 19 3 2 . . 6 4 1 . . . . Fabricators 4 | . . . . . . . . . . . . . . . 2 2 Repair Stations 5 | . . . . . 3 . . . . 2 . . . . . . Recycling Units 9 | . 4 . . . 5 . . . . . . . . . . . Scanalyzers 9 | . . . . . 9 . . . . . . . . . . . Garrison Access 2 | . . . . . 1 1 . . . . . . . . . . Terminal Hacks 23 | . 9 . 2 1 6 2 1 . . 1 . 1 . . . . Record 1 | . . . 1 . . . . . . . . . . . . . Part Schematic 1 | . 1 . . . . . . . . . . . . . . . Robot Analysis 4 | . 4 . . . . . . . . . . . . . . . Prototype ID Bank 3 | . 1 . . . 2 . . . . . . . . . . . Open Door 3 | . . . . 1 . 2 . . . . . . . . . . Open DSF 2 | . . . . . . . 1 . . . . 1 . . . . Branch Access Points 1 | . . . . . 1 . . . . . . . . . . . Emergency Access Points 1 | . . . . . . . . . . 1 . . . . . . Locate Traps 4 | . 2 . . . 2 . . . . . . . . . . . Zone Layout 2 | . 1 . . . 1 . . . . . . . . . . . EX-Prototype ID Bank 1 | . . . 1 . . . . . . . . . . . . . Fabricator Hacks 1 | . . . . . . . . . . . . . . . . 1 Network Status 1 | . . . . . . . . . . . . . . . . 1 Repair Station Hacks 4 | . . . . . 2 . . . . 2 . . . . . . Scan Component 2 | . . . . . 1 . . . . 1 . . . . . . Repair 2 | . . . . . 1 . . . . 1 . . . . . . Recycling Unit Hacks 2 | . 1 . . . 1 . . . . . . . . . . . Retrieve Components 2 | . 1 . . . 1 . . . . . . . . . . . Scanalyzer 9 | . . . . . 9 . . . . . . . . . . . Insert Component 6 | . . . . . 6 . . . . . . . . . . . Analyze 3 | . . . . . 3 . . . . . . . . . . . Garrison Access Hacks 2 | . . . . . 1 1 . . . . . . . . . . Seal Access 2 | . . . . . 1 1 . . . . . . . . . . Unauthorized Hacks 10 | . 5 . . . 4 . . . . 1 . . . . . . Terminals 6 | . 3 . . . 2 . . . . 1 . . . . . . Botnet 5 | . 2 . . . 2 . . . . 1 . . . . . . Operators 1 | . 1 . . . . . . . . . . . . . . . Fabricators . | . . . . . . . . . . . . . . . . . Repair Stations . | . . . . . . . . . . . . . . . . . Recycling Units 4 | . 2 . . . 2 . . . . . . . . . . . Tunnel 4 | . 2 . . . 2 . . . . . . . . . . . Scanalyzers . | . . . . . . . . . . . . . . . . . Garrison Access . | . . . . . . . . . . . . . . . . . Data Cores Recovered 1 | . . . . . 1 . . . . . . . . . . . Used 1 | . . . . . 1 . . . . . . . . . . . Hacking Detections 27 | . 7 . . . 10 3 1 . . 1 3 . . . 1 1 Full Trace Events 2 | . 1 . . . 1 . . . . . . . . . . . Feedback Events . | . . . . . . . . . . . . . . . . . Feedback Blocked . | . . . . . . . . . . . . . . . . . Robot Schematics Acquired . | . . . . . . . . . . . . . . . . . Robots Built . | . . . . . . . . . . . . . . . . . Authchips . | . . . . . . . . . . . . . . . . . Time . | . . . . . . . . . . . . . . . . . Total Robot Build Rating . | . . . . . . . . . . . . . . . . . Part Schematics Acquired 4 | . 1 . . . 3 . . . . . . . . . . . Parts Built . | . . . . . . . . . . . . . . . . . Authchips . | . . . . . . . . . . . . . . . . . Time . | . . . . . . . . . . . . . . . . . Total Part Build Rating . | . . . . . . . . . . . . . . . . . Parts Repaired 2 | . . . . . 1 . . . . 1 . . . . . . Time 76 | . . . . . 32 . . . . 44 . . . . . . Parts Recycled . | . . . . . . . . . . . . . . . . . Recycled Matter . | . . . . . . . . . . . . . . . . . Retrieved Matter . | . . . . . . . . . . . . . . . . . Retrieved Components 18 | . 9 . . . 9 . . . . . . . . . . . Parts Scanalyzed 3 | . . . . . 3 . . . . . . . . . . . Part Schematics Acquired 3 | . . . . . 3 . . . . . . . . . . . Parts Damaged . | . . . . . . . . . . . . . . . . . Bothacking | -11 -10 -10 -10 -9 -8 -8 -7 -7 -6 -5 -4 -3 -3 -3 -2 -1 ------------ Run | Scr Mat Min Exi Min Mat Sto Fac DSF Fac Fac Fac Res DSF Gar Res Acc Used RIF Installer 1 | . . . . . . . . . . . . . . 1 . . Robots Hacked 1 | . . . . . . . . . 1 . . . . . . . Non-combat 1 | . . . . . . . . . 1 . . . . . . . Combat . | . . . . . . . . . . . . . . . . . Robot Hacks Applied 1 | . . . . . . . . . 1 . . . . . . . find_chute 1 | . . . . . . . . . 1 . . . . . . . Relay Couplers Released . | . . . . . . . . . . . . . . . . . Fabnet Peak Effective % . | . . . . . . . . . . . . . . . . . Robots Rewired 3 | . . . 3 . . . . . . . . . . . . . Allies Hacked . | . . . . . . . . . . . . . . . . . Hacks Repelled . | . . . . . . . . . . . . . . . . . Allies | -11 -10 -10 -10 -9 -8 -8 -7 -7 -6 -5 -4 -3 -3 -3 -2 -1 -------- Run | Scr Mat Min Exi Min Mat Sto Fac DSF Fac Fac Fac Res DSF Gar Res Acc Total Allies 20 | . . . 3 5 . 12 . . . . . . . . . . Largest Group 10 | . . . 3 5 4 10 8 8 . . . . . . . . Highest-Rated Group 173 | . . . 37 81 71 173 141 141 . . . . . . . . Highest-Rated Ally 35 | . . . 21 31 31 35 29 29 . . . . . . . . Total Orders 19 | . . . . 2 . 6 . . . . . . . . . 11 STAY 1 | . . . . 1 . . . . . . . . . . . . ROAM 1 | . . . . . . 1 . . . . . . . . . . FOLLOW 3 | . . . . 1 . 2 . . . . . . . . . . EXPLORE 14 | . . . . . . 3 . . . . . . . . . 11 Ally Attacks 76 | . . . . 14 41 21 . . . . . . . . . . Total Damage 1287 | . . . . 163 465 659 . . . . . . . . . . Kills 14 | . . . . 3 6 5 . . . . . . . . . . Allies Corrupted . | . . . . . . . . . . . . . . . . . Allies Melted 1 | . . . . . . 1 . . . . . . . . . . Intel | -11 -10 -10 -10 -9 -8 -8 -7 -7 -6 -5 -4 -3 -3 -3 -2 -1 ------- Run | Scr Mat Min Exi Min Mat Sto Fac DSF Fac Fac Fac Res DSF Gar Res Acc Robot Analysis Total 4 | . 4 . . . . . . . . . . . . . . . Derelict Logs Recovered 3 | . . 1 . 2 . . . . . . . . . . . . Drone Launches 37 | . . . . . . 21 . . . . . . . . . 16 Drone Recoveries 19 | . . . . . . 7 . . . . . . . . . 12 Exploration | -11 -10 -10 -10 -9 -8 -8 -7 -7 -6 -5 -4 -3 -3 -3 -2 -1 ------------- Run | Scr Mat Min Exi Min Mat Sto Fac DSF Fac Fac Fac Res DSF Gar Res Acc Turns Passed 6631 | 213 704 520 485 701 2289 716 19 11 52 224 137 19 30 99 35 377 Spaces Moved 5609 | 136 522 461 428 560 783 539 46 57 113 447 388 41 60 218 67 743 Core 24 | 21 . . . . . . . . . . . . 1 . . 2 Treads 49 | 27 1 . . . 17 4 . . . . . . . . . . Legs . | . . . . . . . . . . . . . . . . . Wheels 3066 | 88 521 461 428 560 766 242 . . . . . . . . . . Hover . | . . . . . . . . . . . . . . . . . Flight 2470 | . . . . . . 293 46 57 113 447 388 41 59 218 67 741 Fastest Speed 14 | 50 87 105 105 90 92 17 20 14 20 23 20 29 23 23 32 26 Average Speed 70 | 97 99 105 105 94 106 65 20 19 20 23 28 29 25 28 32 35 Slowest Speed 385 | 160 240 105 105 105 385 170 20 20 20 23 29 29 150 32 32 200 Overloaded Moves 9 | . . . . . . . . 9 . . . . . . . . Propulsion Burnouts . | . . . . . . . . . . . . . . . . . Robots Hopped 19 | . . . . . . 2 . . . 4 1 . . 2 . 10 Cave-ins Triggered . | . . . . . . . . . . . . . . . . . Exploration Rate (%) 47 | 6 99 98 89 98 81 70 1 67 5 10 13 1 82 51 4 31 Regions Visited 16 Branch Regions 4 Pre-discovered Areas 8 | . 2 1 1 2 2 . . . . . . . . . . . Known Exits Taken 8 | . . . . . 1 1 1 . 1 1 1 1 . . 1 . Unknown Exits Taken 5 | 1 1 1 1 1 . . . . . . . . . . . . Scrap Searched 4 | . . 1 . 3 . . . . . . . . . . . . Spaces Dug 29 | . . . . . . 1 . . 1 10 6 1 . . 2 8 Terrain Destroyed 82 | . . . . . 5 19 . . 1 10 6 1 . . 2 38 Melee 29 | . . . . . . 1 . . 1 10 6 1 . . 2 8 Projectile 23 | . . . . . 5 18 . . . . . . . . . . AOE 30 | . . . . . . . . . . . . . . . . 30 Terrain Rammed . | . . . . . . . . . . . . . . . . . Walls Destroyed . | . . . . . . . . . . . . . . . . . Machines Disabled . | . . . . . . . . . . . . . . . . . Actions | -11 -10 -10 -10 -9 -8 -8 -7 -7 -6 -5 -4 -3 -3 -3 -2 -1 --------- Run | Scr Mat Min Exi Min Mat Sto Fac DSF Fac Fac Fac Res DSF Gar Res Acc Total 7804 | 179 656 497 463 657 2138 763 54 56 139 542 396 46 75 251 76 816 Wait 1529 | 4 53 36 2 34 1207 66 2 . 20 76 . . 10 1 8 10 Move 5556 | 135 521 460 427 559 782 535 45 56 112 438 385 40 59 212 66 724 Hop 16 | . . . . . . 1 . . . 4 1 . . 2 . 8 Pick Up 74 | 6 9 1 5 7 27 12 1 . . . . 2 1 . . 3 Fast Attach 87 | 15 10 . . 12 17 18 2 . 1 6 . . . . . 6 Attach 37 | 5 1 . . 9 3 4 . . . . . . . . . 15 Detach 22 | . 3 . . . 4 2 . . . . . . . . . 13 Swap 50 | . 10 . . 3 12 20 1 . . 1 . 1 . . . 2 Drop 95 | . 17 . . . 36 22 3 . 1 4 . 2 1 . . 9 Fire 196 | 14 32 . . 33 50 63 . . 1 . . . . . . 3 Melee 59 | . . . . . . 10 . . 1 13 10 1 . . 2 22 Ram . | . . . . . . . . . . . . . . . . . Kick . | . . . . . . . . . . . . . . . . . Crush . | . . . . . . . . . . . . . . . . . Escape Stasis 40 | . . . . . . . . . . . . . 4 36 . . Rewire 35 | . . . 29 . . 3 . . 3 . . . . . . . Trap . | . . . . . . . . . . . . . . . . . Miscellaneous 8 | . . . . . . 7 . . . . . . . . . 1 Route ------- -11/Scrapyard -10/Materials (discovered 5 exits: [*Mat x3] / [*Min x2]) -10/Mines (discovered 3 exits: [*Mat x2] / *Exi) -10/Exiles -9/Mines (discovered 2 exits: *Mat x2) -8/Materials (discovered 4 exits: *Fac x2 / *Sto x2) -8/Storage -7/Factory -7/DSF -6/Factory -5/Factory -4/Factory -3/Research -3/DSF -3/Garrison (discovered 2 exits: *Res x2) -2/Research -1/Access To Epsilon Eridani History --------- Turn | Location | Event 27 | -11/Scrapyard | Discovered new exit (range 12) 214 | -11/Scrapyard | Entered Materials 307 | -10/Materials | Build established: Scavenger-Skirmisher 351 | -10/Materials | Discovered new exit (range 16) 544 | -10/Materials | Discovered new exit (range 10) 703 | -10/Materials | Discovered new exit (range 7) 728 | -10/Materials | Build established: Scavenger-Tank 738 | -10/Materials | Discovered new exit (range 5) 846 | -10/Materials | Discovered new exit (range 8) 918 | -10/Materials | Entered Mines 985 | -10/Mines | Discovered new exit (range 10) 1148 | -10/Mines | Deemed a non-threat by the Exiles lab entrance 1148 | -10/Mines | Discovered new exit (range 5) 1287 | -10/Mines | Discovered new exit (range 14) 1438 | -10/Mines | Entered Exiles 1438 | -10/Exiles | Found Exiles lab destroyed 1530 | -10/Exiles | Learned location of Zion (-6) 1584 | -10/Exiles | Opened EX-Vault 1591 | -10/Exiles | Found Latent Energy Streamer 1911 | -10/Exiles | Discovered new exit (range 11) 1923 | -10/Exiles | Entered Mines 1923 | -9/Mines | Accompanied by 3 allies 1924 | -9/Mines | Assembled infested the area 2020 | -9/Mines | Destroyed 19 combat bots 2051 | -9/Mines | Discovered new exit (range 6) 2055 | -9/Mines | Lost 17 parts (3p4n6u4w) 2066 | -9/Mines | Assisted by bots powering up and referring to "LRC-V3" 2263 | -9/Mines | Met a Derelict who couldn't figure out how to use a Trap Extractor 2281 | -9/Mines | Build established: Scavenger-Skirmisher 2313 | -9/Mines | Learned location of Recycling (-8) 2593 | -9/Mines | Discovered new exit (range 10) 2622 | -9/Mines | System corruption reached 10% 2624 | -9/Mines | Entered Materials 2624 | -8/Materials | Accompanied by 4 allies 2624 | -8/Materials | Devolved, losing 2 slots: Utility x-1, Weapon x-1 2629 | -8/Materials | Led the pair of lost Derelicts to an unsafe place 2965 | -8/Materials | Build established: Scavenger-Tank 3071 | -8/Materials | Discovered new exit (range 9) 3426 | -8/Materials | Discovered new exit (range 9) 3504 | -8/Materials | Discovered new exit (range 16) 3572 | -8/Materials | Repaired Arm. Wheel 3680 | -8/Materials | Identified exit to Storage 4913 | -8/Materials | Entered Storage 5012 | -8/Storage | Core integrity fell below 50% 5112 | -8/Storage | Lost 5 parts (1p3n1u) 5218 | -8/Storage | Met a pair of Derelict thieves 5357 | -8/Storage | Lost 3 parts (1p2n) 5366 | -8/Storage | Destroyed 7 combat bots 5564 | -8/Storage | Assisted by bots powering up and referring to "LRC-V3" 5571 | -8/Storage | Discovered new exit (range 6) 5617 | -8/Storage | Identified exit to Factory 5629 | -8/Storage | Entered Factory 5629 | -7/Factory | Accompanied by 8 allies 5629 | -7/Factory | Devolved, losing 1 slot: Propulsion x-1 5646 | -7/Factory | Identified exit to DSF 5648 | -7/Factory | Entered DSF 5648 | -7/DSF | Accompanied by 8 allies 5656 | -7/DSF | Discovered new exit (range 15) 5659 | -7/DSF | Identified exit to Factory 5659 | -7/DSF | Entered Factory 5659 | -6/Factory | Devolved, losing 1 slot: Propulsion x-1 5684 | -6/Factory | Discovered new exit (range 16) 5711 | -6/Factory | Identified exit to Factory 5711 | -6/Factory | Entered another Factory area 5711 | -5/Factory | Devolved, losing 1 slot: Power x-1 5768 | -5/Factory | Repaired Imp. Cooling System 5933 | -5/Factory | Discovered new exit (range 11) 5935 | -5/Factory | Identified exit to Factory 5935 | -5/Factory | Entered another Factory area 5935 | -4/Factory | Devolved, losing 1 slot: Power x-1 6047 | -4/Factory | Spotted B-86 Titan 6049 | -4/Factory | Noticed a derelict Sapper rigging charges 6066 | -4/Factory | Discovered new exit (range 13) 6072 | -4/Factory | Identified exit to Research 6072 | -4/Factory | Entered Research 6072 | -3/Research | Devolved, losing 1 slot: Propulsion x-1 6091 | -3/Research | Identified exit to DSF 6091 | -3/Research | Entered DSF 6100 | -3/DSF | Build established: Scout 6101 | -3/DSF | Assembled infested the area 6103 | -3/DSF | Found Fusion Bomb Launcher 6105 | -3/DSF | Discovered new exit (range 14) 6114 | -3/DSF | Additional patrols routed to DSF 6119 | -3/DSF | Identified exit to Garrison 6121 | -3/DSF | Entered Garrison 6136 | -3/Garrison | Triggered checkpoint 6155 | -3/Garrison | Spotted B-86 Titan 6172 | -3/Garrison | Triggered checkpoint 6187 | -3/Garrison | Discovered new exit (range 15) 6191 | -3/Garrison | Identified exit to Research 6191 | -3/Garrison | Attempted to access garrison exit controls, blocked by remote lockdown 6202 | -3/Garrison | Triggered checkpoint 6212 | -3/Garrison | Discovered exit to Research (range 15) 6219 | -3/Garrison | Installed Relay Interface Framework 6220 | -3/Garrison | Entered Research 6220 | -2/Research | Devolved, losing 1 slot: Propulsion x-1 6233 | -2/Research | Lost 3 parts (1n2u) 6238 | -2/Research | Discovered new exit (range 11) 6254 | -2/Research | Identified exit to Access 6255 | -2/Research | Entered Access 6255 | -1/Access | Devolved, losing 1 slot: Utility x-1 6560 | -1/Access | Build established: Mutant 6572 | -1/Access | Energy Cycler disabled 6626 | -1/Access | Discovered new exit (range 11) 6632 | *** | Escaped! Last Messages --------------- 06589_ K-01 Serf cleans the Sealed Freight Elevator. 06594_ Sealed Freight Elevator disabled. 06595_ Lgt. Quantum Reactor destroyed. 06595_ K-01 Serf collects debris. 06596_ Field Propulsion Array destroyed. 06597_ Acquired 3 matter. 06603_ Acquired Prototype Reactor. 06603_ Identified Imp. Quantum Reactor. 06604_ Structural Scanner destroyed. 06607_ Hvy. Flail destroyed. 06618_ K-01 Serf cleans the Wave Collapse Detector. 06619_ U-05 Engineer destroyed. 06620_ K-01 Serf cleans the Wave Collapse Detector. 06626_ Main Access Shell breached. 06626_ EXIT=FOUND 06627_ Impulse Thruster Array destroyed. 06629_ Dropped Imp. Quantum Reactor. 06630_ The Access Shell folds into the floor. 06631_ U-05 Engineer lays Concrete. [Achievement: Grand Amoeba] Map ----- +----------------------------------------------------+ | ?????????????????????????????????????????????? # | | ?????????????????????????????????????????????? # ] | | ?????????????????????????????????????????????? # | | ????????????????????????????????????????????#+## | | ????????????????????????????????????????????# ##= | | ?????????????????????????????????????######## ## | | ???????????????????????????????????? #### | | ???????????????????????????????????? #### | | ???????????????????????????????????? ??## | | ????????????????????????????????????? ### | | ??????????????????????????????????????? # | | ???????????????????????????????????????? # | | ????????????????????????????????????????? / | | ??????????????????????????????????????????# # | | ??????????????????????????????????????????? # | | ????????????????????????????????????????????# ## | | ????????????????????????????????????????????# # | | ????????????????????????????????????????????# | | ????????????????????????????????????????????# ### | | ????????????????????????????????????????????# #?## | | ???????????????????#""""""""""#?????????????# #??? | | ???????????????????# #??????????####/#### | | ???????????????????# #??????????# [ | | ???????????????????# #??????????# | | ???????????????????# "" #??????????# " | | ???????????????????# "@ #??????????#=%|""" | | ???????????????????# #??????????# *""" | | ???????????????????# #?########## " | | ???????????????????# #?# # | | ??????????????????## ### + | | ??????????????????# ## "" # " | | ??????????????????##"" ## """ [# """ | | ???????????????????#"" # # "R #] """ | | ???????????????????#"" ### """ # " | | ???????????????????#T uu #?# "" # | | ???????????????????#"" s* #?# # | | ???????????????????#"" s #?# # | | ???????????????????#"" sps#####/#########+#### | | ?????????????? sp ? | | ?????????????? ? | | ??????????????+####################/######+#+????? | | ???????????????????????????????????? ???????????? | | ????????????????????????????????????? ?????????? | | ??????????????????????????????????????? ????????? | | ???????????????????????????????????????? #???????? | | ?????????????????????????????????????????#???????? | | ?????????????????????????????????????????????????? | | ?????????????????????????????????????????????????? | | ?????????????????????????????????????????????????? | | ?????????????????????????????????????????????????? | +----------------------------------------------------+ Best States ------------- Heat Dissipation 75 Energy Generation 32 Energy Capacity 505 Matter Stores 300 Matter Capacity 300 Sight Range 16 Robot Scan Range 18 Terrain Scan Range 16 Terrain Scan Density 10 Armor Coverage 450 Evasion (%) 66 Recoil Reduction 6 Item Schematics ----------------- Huge Storage Unit | -10/Materials | Hacked Imp. Signal Interpreter | -8/Materials | Scanalyzed Imp. Sensor Array | -8/Materials | Scanalyzed System Restoration Module | -8/Materials | Scanalyzed Robot Schematics ------------------ None Fabricated ------------ Nothing Alien Tech Used ----------------- None Achievements -------------- Grand Amoeba Challenges ------------ Devolution Game ------ Seed DimensionalGuidanceBox Manual? 0 Play Time 02:28:01 Cumulative 413.4 hours Start 2022.10.19 @ 15:08:27 End 2022.10.20 @ 15:25:05 Sessions 17 Manual Loads 0 Difficulty Rogue Special Mode None Game No. 73 Rogue 66 Adventurer 1 Explorer 6 Win Type 0 Total 30 Types 8/3/10/1/1/1/4/1/1 Lore% 91 Gallery% 92 Achievement% 81 Wizard Run 0 Options --------- ASCII 0 Keyboard 0 Movement Mouse Keybinds 0 Fullscreen 1 Font 18/SmallcapsGlow Map View 76x50 Tactical HUD 1 Map Filters NONE Filters NONE Steam 1 RUN: b07e6f21-f20f-414f-8682-866767ad4901